[Event "Titled Tuesday Blitz May 03 Early 2022"]
[White "Omariev, Maksim"]
[Black "Pham, Tran Gia Phuc"]
[WhiteFideId "4193423"]
[BlackFideId "12415669"]
[WhiteElo "2506"]
[BlackElo "1789"]
[Result "1-0"]
[Round "02"]
[TimeControl "180+1"]
[Date "2022.05.03"]
[WhiteClock "0:01:26"]
[BlackClock "0:01:08"]

1. e4 {[%clk 0:03:00]}  c5 {[%clk 0:02:59]} 2. Nf3 {[%clk 0:03:00]}  d6 {[%clk 0:02:58]} 3. d4 {[%clk 0:03:00]}  cxd4 {[%clk 0:02:56]} 4. Nxd4 {[%clk 0:03:00]}  Nf6 {[%clk 0:02:56]} 5. Nc3 {[%clk 0:03:01]}  a6 {[%clk 0:02:56]} 6. h3 {[%clk 0:02:55]}  e6 {[%clk 0:02:55]} 7. g4 {[%clk 0:02:55]}  Be7 {[%clk 0:02:53]} 8. Bg2 {[%clk 0:02:55]}  Qc7 {[%clk 0:02:53]} 9. Be3 {[%clk 0:02:54]}  Nc6 {[%clk 0:02:53]} 10. Qe2 {[%clk 0:02:43]}  Nd7 {[%clk 0:02:47]} 11. O-O-O {[%clk 0:02:41]}  Nc5 {[%clk 0:02:47]} 12. Kb1 {[%clk 0:02:39]}  Bd7 {[%clk 0:02:46]} 13. f4 {[%clk 0:02:38]}  Nxd4 {[%clk 0:02:40]} 14. Bxd4 {[%clk 0:02:37]}  Bc6 {[%clk 0:02:40]} 15. Bxg7 {[%clk 0:02:35]}  Rg8 {[%clk 0:02:39]} 16. Bd4 {[%clk 0:02:36]}  b5 {[%clk 0:02:38]} 17. f5 {[%clk 0:02:27]}  b4 {[%clk 0:02:38]} 18. Nd5 {[%clk 0:02:27]}  Bxd5 {[%clk 0:02:30]} 19. exd5 {[%clk 0:02:26]}  e5 {[%clk 0:02:15]} 20. Bxe5 {[%clk 0:02:26]}  O-O-O {[%clk 0:02:08]} 21. Bf4 {[%clk 0:02:16]}  Bf6 {[%clk 0:02:07]} 22. Qc4 {[%clk 0:02:06]}  a5 {[%clk 0:02:02]} 23. Rhe1 {[%clk 0:01:50]}  Rde8 {[%clk 0:01:41]} 24. Bf1 {[%clk 0:01:48]}  Re7 {[%clk 0:01:29]} 25. Rxe7 {[%clk 0:01:46]}  Bxe7 {[%clk 0:01:29]} 26. Qd4 {[%clk 0:01:40]}  Kb7 {[%clk 0:01:25]} 27. Bb5 {[%clk 0:01:40]}  Qd8 {[%clk 0:01:20]} 28. Bc6+ {[%clk 0:01:38]}  Ka7 {[%clk 0:01:20]} 29. Re1 {[%clk 0:01:32]}  Bf6 {[%clk 0:01:19]} 30. Qc4 {[%clk 0:01:29]}  Qc7 {[%clk 0:01:08]} 31. Qxc5+ {[%clk 0:01:26]} 1-0


[Site "https://www.chess.com"]

[Event "Titled Tuesday Blitz May 03 Early 2022"]
[White "Perez Gormaz, Matias"]
[Black "Mikhnenko, Alexander"]
[WhiteFideId "3406342"]
[BlackFideId "34143014"]
[WhiteElo "2322"]
[BlackElo "2117"]
[Result "1-0"]
[Round "02"]
[TimeControl "180+1"]
[Date "2022.05.03"]
[WhiteClock "0:01:17"]
[BlackClock "0:00:23"]

1. e4 {[%clk 0:03:00]}  c5 {[%clk 0:02:59]} 2. Nf3 {[%clk 0:03:01]}  e6 {[%clk 0:02:58]} 3. g3 {[%clk 0:02:59]}  d5 {[%clk 0:02:58]} 4. exd5 {[%clk 0:03:00]}  exd5 {[%clk 0:02:59]} 5. d4 {[%clk 0:03:01]}  Nf6 {[%clk 0:02:59]} 6. Bg2 {[%clk 0:03:01]}  Nc6 {[%clk 0:02:59]} 7. O-O {[%clk 0:03:01]}  Be7 {[%clk 0:02:59]} 8. Nc3 {[%clk 0:03:01]}  Be6 {[%clk 0:02:58]} 9. dxc5 {[%clk 0:03:00]}  Bxc5 {[%clk 0:02:59]} 10. a3 {[%clk 0:02:59]}  O-O {[%clk 0:02:58]} 11. b4 {[%clk 0:02:59]}  Bb6 {[%clk 0:02:57]} 12. Bb2 {[%clk 0:02:59]}  Rc8 {[%clk 0:02:55]} 13. Na4 {[%clk 0:02:50]}  Bc7 {[%clk 0:02:49]} 14. Nc5 {[%clk 0:02:43]}  b6 {[%clk 0:02:45]} 15. Nxe6 {[%clk 0:02:35]}  fxe6 {[%clk 0:02:46]} 16. Re1 {[%clk 0:02:36]}  Re8 {[%clk 0:02:46]} 17. Ng5 {[%clk 0:02:23]}  Qd7 {[%clk 0:02:20]} 18. Bh3 {[%clk 0:02:18]}  Nd8 {[%clk 0:02:19]} 19. c4 {[%clk 0:02:12]}  h6 {[%clk 0:02:06]} 20. Bxf6 {[%clk 0:02:00]}  gxf6 {[%clk 0:02:07]} 21. Nxe6 {[%clk 0:01:59]}  Nxe6 {[%clk 0:02:04]} 22. cxd5 {[%clk 0:01:56]}  Be5 {[%clk 0:01:26]} 23. Bxe6+ {[%clk 0:01:48]}  Rxe6 {[%clk 0:01:26]} 24. dxe6 {[%clk 0:01:45]}  Qe7 {[%clk 0:00:47]} 25. Qd7 {[%clk 0:01:36]}  Re8 {[%clk 0:00:34]} 26. Qxe7 {[%clk 0:01:24]}  Rxe7 {[%clk 0:00:34]} 27. Rad1 {[%clk 0:01:24]}  Rxe6 {[%clk 0:00:34]} 28. f4 {[%clk 0:01:24]}  Bd4+ {[%clk 0:00:34]} 29. Kg2 {[%clk 0:01:22]}  Rxe1 {[%clk 0:00:34]} 30. Rxe1 {[%clk 0:01:22]}  Bb2 {[%clk 0:00:24]} 31. Re8+ {[%clk 0:01:16]}  Kf7 {[%clk 0:00:23]} 32. Ra8 {[%clk 0:01:17]} 1-0


[Site "https://www.chess.com"]

[Event "Titled Tuesday Blitz May 03 Early 2022"]
[White "Peterson, Eric"]
[Black "Melian, Juan Sebastian"]
[WhiteFideId "14908395"]
[BlackFideId "3706575"]
[WhiteElo "2195"]
[BlackElo "1842"]
[Result "0-1"]
[Round "02"]
[TimeControl "180+1"]
[Date "2022.05.03"]
[WhiteClock "0:01:02"]
[BlackClock "0:01:05"]

1. e4 {[%clk 0:03:00]}  c5 {[%clk 0:02:59]} 2. d4 {[%clk 0:03:00]}  cxd4 {[%clk 0:03:00]} 3. c3 {[%clk 0:03:01]}  d3 {[%clk 0:02:59]} 4. Bxd3 {[%clk 0:03:00]}  d6 {[%clk 0:02:59]} 5. Nf3 {[%clk 0:03:01]}  Nc6 {[%clk 0:02:59]} 6. O-O {[%clk 0:03:01]}  Bg4 {[%clk 0:02:59]} 7. h3 {[%clk 0:02:59]}  Bxf3 {[%clk 0:02:59]} 8. Qxf3 {[%clk 0:02:59]}  Ne5 {[%clk 0:03:00]} 9. Bb5+ {[%clk 0:02:58]}  Nd7 {[%clk 0:02:58]} 10. Rd1 {[%clk 0:02:54]}  Nf6 {[%clk 0:02:46]} 11. Bg5 {[%clk 0:02:45]}  Qa5 {[%clk 0:02:38]} 12. a4 {[%clk 0:02:31]}  a6 {[%clk 0:02:33]} 13. b4 {[%clk 0:02:07]}  Qc7 {[%clk 0:02:32]} 14. Be2 {[%clk 0:01:57]}  e6 {[%clk 0:02:28]} 15. Na3 {[%clk 0:01:53]}  Be7 {[%clk 0:02:27]} 16. Nc4 {[%clk 0:01:51]}  O-O {[%clk 0:02:23]} 17. Rac1 {[%clk 0:01:49]}  b5 {[%clk 0:02:19]} 18. axb5 {[%clk 0:01:47]}  axb5 {[%clk 0:02:20]} 19. Na5 {[%clk 0:01:47]}  Ne5 {[%clk 0:02:19]} 20. Qg3 {[%clk 0:01:40]}  Nxe4 {[%clk 0:02:10]} 21. Qe3 {[%clk 0:01:13]}  Nxg5 {[%clk 0:01:53]} 22. f4 {[%clk 0:01:13]}  h6 {[%clk 0:01:38]} 23. fxe5 {[%clk 0:01:11]}  dxe5 {[%clk 0:01:39]} 24. h4 {[%clk 0:01:03]}  Nh7 {[%clk 0:01:39]} 25. Bf3 {[%clk 0:01:03]}  Rxa5 {[%clk 0:01:05]} 26. bxa5 {[%clk 0:01:02]}  Bc5 {[%clk 0:01:05]} 0-1


[Site "https://www.chess.com"]

[Event "Titled Tuesday Blitz May 03 Early 2022"]
[White "Petrova, Irina"]
[Black "Vusatiuk, Vladimir"]
[WhiteFideId "14124122"]
[BlackFideId "14118610"]
[WhiteElo "1993"]
[BlackElo "2157"]
[Result "0-1"]
[Round "02"]
[TimeControl "180+1"]
[Date "2022.05.03"]
[WhiteClock "0:00:06"]
[BlackClock "0:00:36"]

1. e4 {[%clk 0:03:00]}  c5 {[%clk 0:02:58]} 2. Nf3 {[%clk 0:03:00]}  d6 {[%clk 0:02:59]} 3. Bb5+ {[%clk 0:03:00]}  Nd7 {[%clk 0:02:59]} 4. O-O {[%clk 0:03:00]}  Nf6 {[%clk 0:02:58]} 5. Re1 {[%clk 0:02:59]}  a6 {[%clk 0:02:56]} 6. Bf1 {[%clk 0:02:59]}  b5 {[%clk 0:02:56]} 7. a4 {[%clk 0:02:58]}  b4 {[%clk 0:02:56]} 8. d4 {[%clk 0:02:57]}  cxd4 {[%clk 0:02:55]} 9. Qxd4 {[%clk 0:02:58]}  Qb6 {[%clk 0:02:46]} 10. Qxb6 {[%clk 0:02:44]}  Nxb6 {[%clk 0:02:47]} 11. a5 {[%clk 0:02:43]}  Nbd7 {[%clk 0:02:45]} 12. Bd2 {[%clk 0:02:23]}  Bb7 {[%clk 0:02:28]} 13. e5 {[%clk 0:02:18]}  dxe5 {[%clk 0:02:19]} 14. Nxe5 {[%clk 0:02:19]}  Nxe5 {[%clk 0:02:13]} 15. Rxe5 {[%clk 0:02:20]}  e6 {[%clk 0:02:14]} 16. c3 {[%clk 0:02:07]}  bxc3 {[%clk 0:01:52]} 17. Nxc3 {[%clk 0:02:06]}  Bd6 {[%clk 0:01:50]} 18. Ree1 {[%clk 0:02:03]}  O-O {[%clk 0:01:48]} 19. Rad1 {[%clk 0:01:57]}  Rfd8 {[%clk 0:01:21]} 20. Na4 {[%clk 0:01:50]}  Rac8 {[%clk 0:01:15]} 21. Nb6 {[%clk 0:01:45]}  Rc2 {[%clk 0:01:08]} 22. Bg5 {[%clk 0:01:30]}  Be7 {[%clk 0:01:08]} 23. Rxd8+ {[%clk 0:01:27]}  Bxd8 {[%clk 0:01:09]} 24. b4 {[%clk 0:01:07]}  h6 {[%clk 0:00:57]} 25. Be3 {[%clk 0:01:03]}  Rb2 {[%clk 0:00:41]} 26. Bc5 {[%clk 0:00:28]}  Bxb6 {[%clk 0:00:41]} 27. axb6 {[%clk 0:00:27]}  Nd5 {[%clk 0:00:41]} 28. h3 {[%clk 0:00:20]}  Nxb4 {[%clk 0:00:41]} 29. Bxb4 {[%clk 0:00:18]}  Rxb4 {[%clk 0:00:42]} 30. Ra1 {[%clk 0:00:16]}  Rxb6 {[%clk 0:00:42]} 31. Kh2 {[%clk 0:00:16]}  g5 {[%clk 0:00:42]} 32. f3 {[%clk 0:00:16]}  Kg7 {[%clk 0:00:42]} 33. Kg3 {[%clk 0:00:16]}  Kf6 {[%clk 0:00:42]} 34. Ra5 {[%clk 0:00:15]}  Rd6 {[%clk 0:00:40]} 35. Be2 {[%clk 0:00:15]}  Rd5 {[%clk 0:00:37]} 36. Ra2 {[%clk 0:00:15]}  a5 {[%clk 0:00:37]} 37. Bc4 {[%clk 0:00:15]}  Rc5 {[%clk 0:00:37]} 38. Bd3 {[%clk 0:00:15]}  Bd5 {[%clk 0:00:38]} 39. Ra3 {[%clk 0:00:14]}  Bc6 {[%clk 0:00:37]} 40. Be4 {[%clk 0:00:12]}  Bxe4 {[%clk 0:00:37]} 41. fxe4 {[%clk 0:00:13]}  Ke5 {[%clk 0:00:37]} 42. Kg4 {[%clk 0:00:13]}  Kxe4 {[%clk 0:00:36]} 43. Kh5 {[%clk 0:00:13]}  Kd4 {[%clk 0:00:31]} 44. Kxh6 {[%clk 0:00:13]}  Kc4 {[%clk 0:00:31]} 45. g3 {[%clk 0:00:11]}  Kb4 {[%clk 0:00:31]} 46. Ra1 {[%clk 0:00:11]}  a4 {[%clk 0:00:32]} 47. Rb1+ {[%clk 0:00:11]}  Ka5 {[%clk 0:00:32]} 48. h4 {[%clk 0:00:07]}  gxh4 {[%clk 0:00:33]} 49. gxh4 {[%clk 0:00:08]}  a3 {[%clk 0:00:33]} 50. h5 {[%clk 0:00:08]}  a2 {[%clk 0:00:33]} 51. Ra1 {[%clk 0:00:08]}  Rc2 {[%clk 0:00:34]} 52. Kg7 {[%clk 0:00:08]}  Kb4 {[%clk 0:00:34]} 53. h6 {[%clk 0:00:08]}  Kb3 {[%clk 0:00:35]} 54. h7 {[%clk 0:00:08]}  Rh2 {[%clk 0:00:34]} 55. h8=Q {[%clk 0:00:06]}  Rxh8 {[%clk 0:00:34]} 56. Kxh8 {[%clk 0:00:07]}  Kb2 {[%clk 0:00:35]} 57. Rxa2+ {[%clk 0:00:06]}  Kxa2 {[%clk 0:00:36]} 58. Kg7 {[%clk 0:00:06]}  f5 {[%clk 0:00:36]} 0-1


[Site "https://www.chess.com"]

[Event "Titled Tuesday Blitz May 03 Early 2022"]
[White "Polster, Christian"]
[Black "Urbina Perez, Juan Antonio"]
[WhiteFideId "12965081"]
[BlackFideId "2217368"]
[WhiteElo "2281"]
[BlackElo "2192"]
[Result "1-0"]
[Round "02"]
[TimeControl "180+1"]
[Date "2022.05.03"]
[WhiteClock "0:00:07"]
[BlackClock "0:00:02"]

1. e4 {[%clk 0:03:00]}  c6 {[%clk 0:02:59]} 2. Nc3 {[%clk 0:03:00]}  d5 {[%clk 0:02:42]} 3. Nf3 {[%clk 0:03:00]}  dxe4 {[%clk 0:02:39]} 4. Nxe4 {[%clk 0:03:01]}  Nf6 {[%clk 0:02:39]} 5. Nxf6+ {[%clk 0:02:57]}  exf6 {[%clk 0:02:39]} 6. Be2 {[%clk 0:02:53]}  Bd6 {[%clk 0:02:36]} 7. O-O {[%clk 0:02:53]}  O-O {[%clk 0:02:34]} 8. d4 {[%clk 0:02:50]}  Qc7 {[%clk 0:02:34]} 9. h3 {[%clk 0:02:41]}  Bf5 {[%clk 0:02:33]} 10. Bd3 {[%clk 0:02:41]}  Bg6 {[%clk 0:02:32]} 11. c4 {[%clk 0:02:40]}  c5 {[%clk 0:02:31]} 12. d5 {[%clk 0:02:27]}  Nd7 {[%clk 0:02:30]} 13. Bxg6 {[%clk 0:02:26]}  hxg6 {[%clk 0:02:31]} 14. Be3 {[%clk 0:02:23]}  Rfe8 {[%clk 0:02:29]} 15. Re1 {[%clk 0:02:19]}  b6 {[%clk 0:02:29]} 16. Qc2 {[%clk 0:02:13]}  Re7 {[%clk 0:02:27]} 17. a3 {[%clk 0:02:03]}  Rae8 {[%clk 0:02:21]} 18. Bd2 {[%clk 0:01:48]}  Ne5 {[%clk 0:02:08]} 19. Re3 {[%clk 0:01:36]}  Nxf3+ {[%clk 0:02:00]} 20. Rxf3 {[%clk 0:01:37]}  Be5 {[%clk 0:01:53]} 21. Rd1 {[%clk 0:01:29]}  Bd4 {[%clk 0:01:42]} 22. Bc3 {[%clk 0:01:12]}  Re2 {[%clk 0:01:39]} 23. Qd3 {[%clk 0:00:54]}  Bxc3 {[%clk 0:01:22]} 24. Qxc3 {[%clk 0:00:52]}  Qd6 {[%clk 0:01:21]} 25. g3 {[%clk 0:00:50]}  f5 {[%clk 0:01:12]} 26. Rdd3 {[%clk 0:00:42]}  Re1+ {[%clk 0:01:08]} 27. Kg2 {[%clk 0:00:42]}  R1e4 {[%clk 0:01:07]} 28. Rfe3 {[%clk 0:00:38]}  f4 {[%clk 0:01:01]} 29. Rxe4 {[%clk 0:00:37]}  Rxe4 {[%clk 0:01:01]} 30. b4 {[%clk 0:00:21]}  fxg3 {[%clk 0:00:59]} 31. Rxg3 {[%clk 0:00:20]}  Rd4 {[%clk 0:00:44]} 32. Rd3 {[%clk 0:00:19]}  Rf4 {[%clk 0:00:36]} 33. bxc5 {[%clk 0:00:17]}  bxc5 {[%clk 0:00:37]} 34. Rf3 {[%clk 0:00:16]}  Rh4 {[%clk 0:00:30]} 35. Qe1 {[%clk 0:00:15]}  Qd7 {[%clk 0:00:25]} 36. Qe2 {[%clk 0:00:13]}  Rh5 {[%clk 0:00:23]} 37. Qe3 {[%clk 0:00:12]}  Kh7 {[%clk 0:00:19]} 38. Qxc5 {[%clk 0:00:11]}  Rg5+ {[%clk 0:00:16]} 39. Kh1 {[%clk 0:00:11]}  Rf5 {[%clk 0:00:16]} 40. Qe3 {[%clk 0:00:11]}  Rh5 {[%clk 0:00:15]} 41. Qd3 {[%clk 0:00:09]}  Qd6 {[%clk 0:00:12]} 42. Qd4 {[%clk 0:00:08]}  Qe7 {[%clk 0:00:10]} 43. Kg2 {[%clk 0:00:07]}  Qd6 {[%clk 0:00:10]} 44. Rd3 {[%clk 0:00:07]}  Rg5+ {[%clk 0:00:09]} 45. Kf1 {[%clk 0:00:07]}  Qh2 {[%clk 0:00:09]} 46. c5 {[%clk 0:00:07]}  Qh1+ {[%clk 0:00:08]} 47. Ke2 {[%clk 0:00:07]}  Rg1 {[%clk 0:00:08]} 48. d6 {[%clk 0:00:05]}  Re1+ {[%clk 0:00:08]} 49. Kd2 {[%clk 0:00:05]}  Rd1+ {[%clk 0:00:09]} 50. Kc3 {[%clk 0:00:05]}  Rc1+ {[%clk 0:00:09]} 51. Kb4 {[%clk 0:00:05]}  Qe1+ {[%clk 0:00:09]} 52. Kb5 {[%clk 0:00:05]}  Rb1+ {[%clk 0:00:08]} 53. Kc6 {[%clk 0:00:05]}  Qa5 {[%clk 0:00:08]} 54. d7 {[%clk 0:00:04]}  Qa6+ {[%clk 0:00:08]} 55. Kd5 {[%clk 0:00:04]}  Qb7+ {[%clk 0:00:08]} 56. c6 {[%clk 0:00:04]}  Qc7 {[%clk 0:00:08]} 57. Qc5 {[%clk 0:00:04]}  Re1 {[%clk 0:00:07]} 58. Re3 {[%clk 0:00:04]}  Rxe3 {[%clk 0:00:06]} 59. fxe3 {[%clk 0:00:05]}  f6 {[%clk 0:00:06]} 60. Qd6 {[%clk 0:00:06]}  Qa5+ {[%clk 0:00:06]} 61. Ke6 {[%clk 0:00:06]}  Qf5+ {[%clk 0:00:05]} 62. Ke7 {[%clk 0:00:06]}  Qe4+ {[%clk 0:00:04]} 63. Kf7 {[%clk 0:00:07]}  g5 {[%clk 0:00:03]} 64. d8=Q {[%clk 0:00:06]}  Qg6+ {[%clk 0:00:04]} 65. Ke7 {[%clk 0:00:07]}  Qf5 {[%clk 0:00:02]} 66. c7 {[%clk 0:00:06]}  Qe4+ {[%clk 0:00:02]} 67. Kd7 {[%clk 0:00:06]}  Qf5+ {[%clk 0:00:02]} 68. Qe6 {[%clk 0:00:07]}  Qe4 {[%clk 0:00:02]} 69. c8=Q {[%clk 0:00:07]} 1-0


[Site "https://www.chess.com"]

[Event "Titled Tuesday Blitz May 03 Early 2022"]
[White "Pourkashiyan, Atousa"]
[Black "Zhu, Jiner"]
[WhiteFideId "12502014"]
[BlackFideId "8608059"]
[WhiteElo "2247"]
[BlackElo "2281"]
[Result "0-1"]
[Round "02"]
[TimeControl "180+1"]
[Date "2022.05.03"]
[WhiteClock "0:00:15"]
[BlackClock "0:00:10"]

1. e4 {[%clk 0:03:00]}  e5 {[%clk 0:02:57]} 2. Nf3 {[%clk 0:03:00]}  Nc6 {[%clk 0:02:57]} 3. Bb5 {[%clk 0:02:59]}  a6 {[%clk 0:02:55]} 4. Ba4 {[%clk 0:02:59]}  Nf6 {[%clk 0:02:55]} 5. O-O {[%clk 0:02:57]}  b5 {[%clk 0:02:55]} 6. Bb3 {[%clk 0:02:57]}  Be7 {[%clk 0:02:55]} 7. Re1 {[%clk 0:02:57]}  O-O {[%clk 0:02:54]} 8. c3 {[%clk 0:02:54]}  d5 {[%clk 0:02:54]} 9. exd5 {[%clk 0:02:54]}  Nxd5 {[%clk 0:02:54]} 10. Nxe5 {[%clk 0:02:55]}  Nxe5 {[%clk 0:02:55]} 11. Rxe5 {[%clk 0:02:55]}  c6 {[%clk 0:02:55]} 12. d3 {[%clk 0:02:53]}  Bd6 {[%clk 0:02:55]} 13. Re1 {[%clk 0:02:53]}  Qh4 {[%clk 0:02:53]} 14. g3 {[%clk 0:02:53]}  Qh3 {[%clk 0:02:50]} 15. Qe2 {[%clk 0:02:25]}  Bg4 {[%clk 0:02:27]} 16. Qf1 {[%clk 0:02:23]}  Qh5 {[%clk 0:02:26]} 17. Nd2 {[%clk 0:02:18]}  f5 {[%clk 0:01:55]} 18. f3 {[%clk 0:01:41]}  Bh3 {[%clk 0:01:46]} 19. Qf2 {[%clk 0:01:41]}  Rae8 {[%clk 0:00:47]} 20. Nf1 {[%clk 0:01:37]}  Rxe1 {[%clk 0:00:46]} 21. Qxe1 {[%clk 0:01:37]}  Qxf3 {[%clk 0:00:44]} 22. Qf2 {[%clk 0:01:37]}  Qxd3 {[%clk 0:00:37]} 23. Bf4 {[%clk 0:01:29]}  Bxf4 {[%clk 0:00:25]} 24. Qxf4 {[%clk 0:01:30]}  Kh8 {[%clk 0:00:21]} 25. Rd1 {[%clk 0:01:29]}  Qe2 {[%clk 0:00:20]} 26. Qd2 {[%clk 0:01:17]}  Qg4 {[%clk 0:00:15]} 27. Bxd5 {[%clk 0:01:16]}  cxd5 {[%clk 0:00:15]} 28. Ne3 {[%clk 0:01:17]}  Qe4 {[%clk 0:00:10]} 29. Nxd5 {[%clk 0:01:11]}  Rd8 {[%clk 0:00:08]} 30. b3 {[%clk 0:01:09]}  h6 {[%clk 0:00:06]} 31. c4 {[%clk 0:00:45]}  bxc4 {[%clk 0:00:07]} 32. bxc4 {[%clk 0:00:46]}  Qxc4 {[%clk 0:00:07]} 33. Qa5 {[%clk 0:00:47]}  Re8 {[%clk 0:00:03]} 34. Nf4 {[%clk 0:00:46]}  Qe4 {[%clk 0:00:03]} 35. Qd2 {[%clk 0:00:43]}  Bg4 {[%clk 0:00:03]} 36. Rc1 {[%clk 0:00:41]}  Qb7 {[%clk 0:00:03]} 37. Qf2 {[%clk 0:00:39]}  Bf3 {[%clk 0:00:03]} 38. Re1 {[%clk 0:00:38]}  Be4 {[%clk 0:00:03]} 39. h4 {[%clk 0:00:34]}  Rc8 {[%clk 0:00:03]} 40. h5 {[%clk 0:00:34]}  Rc2 {[%clk 0:00:03]} 41. Re2 {[%clk 0:00:35]}  Rc1+ {[%clk 0:00:03]} 42. Re1 {[%clk 0:00:35]}  Qb1 {[%clk 0:00:03]} 43. Kf1 {[%clk 0:00:23]}  Rxe1+ {[%clk 0:00:03]} 44. Qxe1 {[%clk 0:00:23]}  Qb5+ {[%clk 0:00:04]} 45. Kg1 {[%clk 0:00:20]}  Qc5+ {[%clk 0:00:04]} 46. Kh2 {[%clk 0:00:09]}  Kh7 {[%clk 0:00:04]} 47. Qd2 {[%clk 0:00:07]}  Qc4 {[%clk 0:00:04]} 48. Qb2 {[%clk 0:00:07]}  Qf1 {[%clk 0:00:04]} 49. Ng2 {[%clk 0:00:04]}  Bxg2 {[%clk 0:00:03]} 50. Qxg2 {[%clk 0:00:05]}  Qxg2+ {[%clk 0:00:03]} 51. Kxg2 {[%clk 0:00:05]}  Kg8 {[%clk 0:00:04]} 52. Kf3 {[%clk 0:00:06]}  Kf7 {[%clk 0:00:04]} 53. Kf4 {[%clk 0:00:06]}  Kf6 {[%clk 0:00:05]} 54. g4 {[%clk 0:00:07]}  fxg4 {[%clk 0:00:05]} 55. Kxg4 {[%clk 0:00:08]}  g6 {[%clk 0:00:05]} 56. hxg6 {[%clk 0:00:08]}  Kxg6 {[%clk 0:00:05]} 57. Kh4 {[%clk 0:00:09]}  a5 {[%clk 0:00:06]} 58. Kg4 {[%clk 0:00:10]}  a4 {[%clk 0:00:05]} 59. Kh4 {[%clk 0:00:09]}  a3 {[%clk 0:00:05]} 60. Kg4 {[%clk 0:00:10]}  Kf6 {[%clk 0:00:05]} 61. Kh5 {[%clk 0:00:10]}  Ke5 {[%clk 0:00:05]} 62. Kxh6 {[%clk 0:00:11]}  Kd4 {[%clk 0:00:06]} 63. Kg5 {[%clk 0:00:12]}  Kc3 {[%clk 0:00:07]} 64. Kf4 {[%clk 0:00:13]}  Kb2 {[%clk 0:00:08]} 65. Ke3 {[%clk 0:00:14]}  Kxa2 {[%clk 0:00:09]} 66. Kd2 {[%clk 0:00:14]}  Kb1 {[%clk 0:00:09]} 67. Kd1 {[%clk 0:00:15]}  a2 {[%clk 0:00:10]} 0-1


[Site "https://www.chess.com"]

[Event "Titled Tuesday Blitz May 03 Early 2022"]
[White "Rasulov, Vugar"]
[Black "Kozin, Yuri"]
[WhiteFideId "13402390"]
[BlackFideId "4129920"]
[WhiteElo "2560"]
[BlackElo "2602"]
[Result "1-0"]
[Round "02"]
[TimeControl "180+1"]
[Date "2022.05.03"]
[WhiteClock "0:01:14"]
[BlackClock "0:00:04"]

1. d4 {[%clk 0:03:00]}  d5 {[%clk 0:02:59]} 2. c4 {[%clk 0:03:01]}  c6 {[%clk 0:03:00]} 3. Nf3 {[%clk 0:03:01]}  Nf6 {[%clk 0:03:00]} 4. Nc3 {[%clk 0:03:02]}  dxc4 {[%clk 0:03:00]} 5. a4 {[%clk 0:03:02]}  Bf5 {[%clk 0:02:59]} 6. Ne5 {[%clk 0:03:02]}  e6 {[%clk 0:02:58]} 7. g3 {[%clk 0:02:58]}  Bb4 {[%clk 0:02:57]} 8. Bg2 {[%clk 0:02:56]}  Ne4 {[%clk 0:02:52]} 9. Bd2 {[%clk 0:02:48]}  Qxd4 {[%clk 0:02:04]} 10. Nxe4 {[%clk 0:02:44]}  Bxd2+ {[%clk 0:01:58]} 11. Qxd2 {[%clk 0:02:40]}  Qxe5 {[%clk 0:01:57]} 12. Nd6+ {[%clk 0:02:37]}  Ke7 {[%clk 0:01:57]} 13. Nxc4 {[%clk 0:02:37]}  Qc5 {[%clk 0:01:46]} 14. Rc1 {[%clk 0:02:37]}  Rd8 {[%clk 0:01:33]} 15. Qg5+ {[%clk 0:02:37]}  Ke8 {[%clk 0:01:29]} 16. O-O {[%clk 0:02:30]}  Qf8 {[%clk 0:01:15]} 17. Na5 {[%clk 0:02:30]}  h6 {[%clk 0:01:06]} 18. Qf4 {[%clk 0:02:17]}  Qe7 {[%clk 0:00:59]} 19. e4 {[%clk 0:02:13]}  Bg6 {[%clk 0:00:58]} 20. e5 {[%clk 0:02:13]}  Kf8 {[%clk 0:00:51]} 21. b4 {[%clk 0:02:10]}  b6 {[%clk 0:00:49]} 22. Nxc6 {[%clk 0:02:06]}  Nxc6 {[%clk 0:00:49]} 23. Rxc6 {[%clk 0:02:07]}  b5 {[%clk 0:00:38]} 24. Rfc1 {[%clk 0:02:03]}  Rab8 {[%clk 0:00:31]} 25. a5 {[%clk 0:01:59]}  Kg8 {[%clk 0:00:28]} 26. h4 {[%clk 0:01:59]}  Rd7 {[%clk 0:00:23]} 27. Bf3 {[%clk 0:01:59]}  Rbd8 {[%clk 0:00:22]} 28. h5 {[%clk 0:01:59]}  Bf5 {[%clk 0:00:20]} 29. Rc8 {[%clk 0:01:58]}  Rxc8 {[%clk 0:00:12]} 30. Rxc8+ {[%clk 0:01:59]}  Rd8 {[%clk 0:00:12]} 31. Rc5 {[%clk 0:01:57]}  Qd7 {[%clk 0:00:11]} 32. Kg2 {[%clk 0:01:54]}  Bd3 {[%clk 0:00:10]} 33. Bc6 {[%clk 0:01:46]}  Qd4 {[%clk 0:00:05]} 34. Qxd4 {[%clk 0:01:25]}  Rxd4 {[%clk 0:00:05]} 35. Bf3 {[%clk 0:01:25]}  Rxb4 {[%clk 0:00:03]} 36. Rc8+ {[%clk 0:01:26]}  Kh7 {[%clk 0:00:03]} 37. Rc7 {[%clk 0:01:27]}  a6 {[%clk 0:00:01]} 38. Ra7 {[%clk 0:01:23]}  Be4 {[%clk 0:00:02]} 39. Rxa6 {[%clk 0:01:23]}  Bxf3+ {[%clk 0:00:02]} 40. Kxf3 {[%clk 0:01:24]}  Ra4 {[%clk 0:00:02]} 41. Ke3 {[%clk 0:01:24]}  g6 {[%clk 0:00:02]} 42. Ra7 {[%clk 0:01:22]}  Kg7 {[%clk 0:00:01]} 43. hxg6 {[%clk 0:01:18]}  Kxg6 {[%clk 0:00:02]} 44. f4 {[%clk 0:01:16]}  Ra3+ {[%clk 0:00:02]} 45. Ke4 {[%clk 0:01:16]}  Ra4+ {[%clk 0:00:02]} 46. Kd3 {[%clk 0:01:15]}  h5 {[%clk 0:00:03]} 47. Ra8 {[%clk 0:01:15]}  Ra3+ {[%clk 0:00:03]} 48. Kd4 {[%clk 0:01:15]}  Rxg3 {[%clk 0:00:04]} 49. Rg8+ {[%clk 0:01:14]} 1-0


[Site "https://www.chess.com"]